bitfinex-derivatives/quotes_SOLF0:USTF0_20250522
["timestamp","ask_amount","ask_price","bid_price","bid_amount"]
[1747937442923,1.9273,178.84,178.72,9.00335429]
[1747937443325,12.47282357,178.83,178.73,3.9004]
[1747937443527,6.88252357,178.83,178.73,3.9004]
[1747937444031,0.04233559,178.79,178.78,5.5917]
[1747937444221,0.04233559,178.79,178.78,225.3717]
[1747937444422,0.04233559,178.79,178.75,0.03913268]
[1747937444623,0.04233559,178.79,178.76,219.76]
[1747937445123,5.5917,178.78,178.75,5.63173268]
[1747937445329,0.04233559,178.79,178.76,219.74]
[1747937445929,5.63393559,178.79,178.75,5.63153268]
[1747937446125,5.63393559,178.79,178.76,113.46]
[1747937446325,0.04233559,178.79,178.76,113.46]
[1747937447124,5.63383559,178.79,178.76,119.0521]
[1747937447331,0.04233559,178.79,178.76,113.46]
[1747937448232,0.04233559,178.79,178.78,5.5917]
[1747937448434,0.04233559,178.79,178.76,113.46]
[1747937449031,0.04233559,178.79,178.77,5.592]
[1747937449233,0.04233559,178.79,178.76,113.46]
[1747937449625,0.04233559,178.79,178.77,5.592]
[1747937449933,0.04233559,178.79,178.76,113.46]
[1747937450530,0.04233559,178.79,178.77,5.592]
[1747937450727,0.04233559,178.79,178.76,113.46]
[1747937451631,0.04233559,178.79,178.78,5.5917]
[1747937451930,0.04233559,178.79,178.76,113.46]
[1747937452132,0.04233559,178.79,178.76,119.052]
[1747937452331,0.04233559,178.79,178.76,113.36]
[1747937452531,5.5919,178.78,178.76,113.36]
[1747937453433,5.592,178.77,178.76,113.36]
[1747937455835,5.5918,178.78,178.76,113.36]
[1747937456029,0.04233559,178.79,178.76,113.36]
[1747937456935,0.04233559,178.79,178.77,5.5918]
[1747937458535,5.63383559,178.79,178.76,118.9522]
[1747937460329,5.5917,178.78,178.76,113.36]
[1747937460739,5.63383559,178.79,178.76,113.36]
[1747937461130,0.04233559,178.79,178.76,113.36]
[1747937462036,0.04233559,178.79,178.78,5.5917]
[1747937463039,0.04233559,178.79,178.77,5.5919]
[1747937464331,0.04233559,178.79,178.78,5.5917]
[1747937466438,0.04233559,178.79,178.77,5.5919]
[1747937468139,0.04233559,178.79,178.77,118.9519]
[1747937468333,0.04233559,178.79,178.77,113.36]
[1747937468532,5.5922,178.77,178.75,113.39913268]
[1747937470441,0.04233559,178.79,178.75,113.39913268]
[1747937471040,0.04233559,178.79,178.78,5.5917]
[1747937474241,0.04233559,178.79,178.78,118.9517]
[1747937475645,0.04233559,178.79,178.75,0.03913268]
[1747937476135,5.5923,178.76,178.75,0.03913268]
[1747937476444,0.04233559,178.79,178.75,0.03913268]
[1747937476645,5.5923,178.76,178.75,0.03913268]
[1747937477143,5.5921,178.77,178.75,0.03913268]
[1747937477445,0.04233559,178.79,178.75,0.03913268]
[1747937478838,5.5921,178.77,178.75,0.03913268]
[1747937479144,0.04233559,178.79,178.75,0.03913268]
[1747937479354,5.5919,178.78,178.75,5.63153268]
[1747937479644,0.04233559,178.79,178.75,0.03913268]
[1747937480439,5.5923,178.76,178.75,0.03913268]
[1747937480643,0.04233559,178.79,178.7,596.56]
[1747937480844,1.9564,178.81,178.7,596.56]
[1747937481646,0.04236182,178.77,178.74,0.02148201]
[1747937482640,5.5926,178.75,178.74,0.02148201]
[1747937484045,0.04236182,178.77,178.74,0.02148201]
[1747937484441,0.04236182,178.77,178.74,5.61428201]
[1747937484637,0.04236182,178.77,178.74,0.02148201]
[1747937485042,5.63456182,178.77,178.74,5.61428201]
[1747937485850,5.5923,178.76,178.74,5.61428201]
[1747937486044,5.5923,178.76,178.74,0.02148201]
[1747937487849,5.5926,178.75,178.74,0.02148201]
[1747937492553,5.5926,178.75,178.74,0.02148201]
[1747937496960,5.5942,178.7,178.67,123.22320269]
[1747937497255,1.8976,178.74,178.67,117.62820269]
[1747937497455,5.594,178.71,178.68,5.5946]
[1747937497957,5.63338287,178.71,178.68,5.5946]
[1747937498650,0.03938287,178.71,178.69,5.5945]
[1747937498856,0.03938287,178.71,178.67,113.32]
[1747937499057,5.17329674,178.8,178.69,9.00335429]
[1747937499356,5.5919,178.78,178.75,5.5924]
[1747937499858,5.5914,178.79,178.76,5.5923]
[1747937500055,0.04257227,178.78,178.76,5.5923]
[1747937500256,0.04257227,178.78,178.75,0.03938287]
[1747937500856,5.592,178.77,178.75,0.03938287]
[1747937501358,5.5923,178.76,178.75,0.03938287]
[1747937501657,0.04257227,178.78,178.75,0.03938287]
[1747937501858,5.5921,178.77,178.75,5.63198287]
[1747937503160,5.5923,178.76,178.75,0.03938287]
[1747937508275,5.5921,178.77,178.75,0.03938287]
[1747937509077,5.5923,178.76,178.75,0.03938287]
[1747937509576,5.5921,178.77,178.75,0.03938287]
[1747937509876,0.04257227,178.78,178.75,0.03938287]
[1747937510073,5.592,178.77,178.75,0.03938287]
[1747937510678,5.5923,178.76,178.75,0.03938287]
[1747937514385,5.5921,178.77,178.75,0.03938287]
[1747937514579,0.04257227,178.78,178.75,0.03938287]
[1747937515377,0.04257227,178.78,178.76,106.3]
[1747937515577,0.04257227,178.78,178.77,118.852]
[1747937519184,0.04257227,178.78,178.77,113.26]
[1747937519786,0.04257227,178.78,178.75,2.07318287]
[1747937519985,0.04257227,178.78,178.76,113.24]
[1747937520179,0.04257227,178.78,178.76,118.8321]
[1747937520380,0.04257227,178.78,178.76,113.24]
[1747937520882,0.04257227,178.78,178.77,5.592]
[1747937522080,0.04257227,178.78,178.76,118.8322]
[1747937522886,0.04257227,178.78,178.76,113.24]
[1747937523186,5.63457227,178.78,178.76,113.24]
[1747937524188,5.592,178.77,178.76,113.24]
[1747937525790,5.63437227,178.78,178.76,113.24]
[1747937527687,0.04257227,178.78,178.76,113.24]
[1747937528093,0.04257227,178.78,178.77,5.592]
[1747937532587,118.38919487,178.86,178.8,5.5908]
[1747937532794,118.38919487,178.86,178.76,113.24]
[1747937533095,118.38919487,178.86,178.77,5.5917]
[1747937533290,118.38919487,178.86,178.76,113.24]
[1747937533485,0.04188163,178.83,178.79,0.0419194]
[1747937534087,0.04188163,178.83,178.75,113.24]
[1747937534489,5.5915,178.79,178.76,5.5922]
[1747937534993,5.5915,178.79,178.75,113.24]
[1747937535193,0.04149291,178.79,178.75,113.28003574]
[1747937535498,0.04149291,178.79,178.76,5.5923]
[1747937535898,0.04149291,178.79,178.75,113.28003574]
[1747937536996,0.04149291,178.79,178.76,5.5923]
[1747937537791,0.04149291,178.79,178.75,113.28003574]
[1747937538403,10.76299674,178.85,178.75,122.28339003]
[1747937538699,5.17329674,178.85,178.76,2.0214]
[1747937538997,5.17329674,178.85,178.83,5.59]
[1747937540198,5.17329674,178.85,178.82,113.28021725]
[1747937540903,0.04225229,178.86,178.82,113.28021725]
[1747937541697,5.5901,178.83,178.82,113.28021725]
[1747937542501,5.5901,178.83,178.82,0.04021725]
[1747937548608,0.04225229,178.86,178.82,0.04021725]
[1747937548901,0.04225229,178.86,178.83,113.16]
[1747937549309,0.04225229,178.86,178.85,5.5895]
[1747937549605,5.17329674,178.89,178.85,106.26]
[1747937549804,5.17329674,178.89,178.88,5.5886]
[1747937550006,5.17329674,178.89,178.88,118.7486]
[1747937551305,0.03978339,178.9,178.88,118.7486]
[1747937551506,0.03978339,178.9,178.89,5.5883]
[1747937570630,3.9325,178.98,178.88,113.16]
[1747937571033,5.5864,178.95,178.91,5.5876]
[1747937571331,5.5864,178.95,178.92,113.1]
[1747937571532,5.62667072,178.95,178.92,113.14240505]
[1747937571733,5.62667072,178.95,178.92,118.72950505]
[1747937572235,0.04027072,178.95,178.92,113.14240505]
[1747937572434,0.04027072,178.95,178.93,5.587]
[1747937573837,0.04027072,178.95,178.94,5.5867]
[1747937576837,0.04027072,178.95,178.92,0.04240505]
[1747937577227,5.587,178.93,178.92,0.04240505]
[1747937577836,0.04027072,178.95,178.92,0.04240505]
[1747937578338,5.587,178.94,178.92,0.04240505]
[1747937578539,0.04027072,178.95,178.92,0.04240505]
[1747937580135,5.5869,178.94,178.92,0.04240505]
[1747937580336,0.04027072,178.95,178.92,0.04240505]
[1747937580538,5.62677072,178.95,178.92,5.62960505]
[1747937581341,5.62677072,178.95,178.93,5.5869]
[1747937581939,5.62677072,178.95,178.92,5.62960505]
[1747937582139,0.04027072,178.95,178.92,0.04240505]
[1747937582640,0.04027072,178.95,178.94,5.5867]
[1747937583536,1.9095,179.02,178.92,9.04575934]
[1747937583938,5.5847,179.01,178.92,9.04575934]
[1747937584139,1.9095,179.02,178.92,9.04575934]
[1747937584340,2.0222,179.03,178.92,9.04575934]
[1747937584541,0.0402146,178.99,178.96,0.03932353]
[1747937584838,0.0402146,178.99,178.98,5.5855]
[1747937585640,0.0402146,178.99,178.97,118.6057]
[1747937586241,0.0402146,178.99,178.98,5.5855]
[1747937588250,9.6587,179.07,179.04,5.5835]
[1747937588448,9.6587,179.07,179.01,113.0]
[1747937588746,9.6587,179.07,179.02,113.0]
[1747937589141,2.0222,179.07,179.03,0.04244049]
[1747937589348,0.0398248,179.06,179.03,0.04244049]
[1747937589748,0.0398248,179.06,179.05,5.5833]
[1747937590645,5.17329674,179.14,179.05,106.16]
[1747937590838,5.17329674,179.14,179.06,113.0]
[1747937591240,5.17329674,179.14,179.08,9.00335429]
[1747937591648,0.0409372,179.13,179.09,0.0376118]
[1747937591852,0.0409372,179.13,179.1,112.98]
[1747937592653,0.0409372,179.13,179.12,5.5811]
[1747937593645,0.0409372,179.13,179.1,112.98]
[1747937593646,0.0409372,179.13,179.11,5.5813]
[1747937593846,0.0409372,179.13,179.1,112.98]
[1747937594154,0.0409372,179.13,179.12,5.5811]
[1747937595660,4.0427,179.24,179.11,9.00335429]
[1747937596059,4.0427,179.24,179.12,1.9534]
[1747937596260,5.5779,179.23,179.13,106.1]
[1747937596559,0.03533812,179.2,179.16,0.04264201]
[1747937598561,0.03533812,179.2,179.17,5.5795]
[1747937598762,0.03533812,179.2,179.18,112.92]
[1747937599366,0.03533812,179.2,179.16,0.04264201]
[1747937599764,5.5794,179.18,179.16,0.04264201]
[1747937600265,0.03533812,179.2,179.16,0.04264201]
[1747937600266,5.5795,179.17,179.16,0.04264201]
[1747937600465,0.03533812,179.2,179.16,0.04264201]
[1747937600858,5.5795,179.17,179.16,0.04264201]
[1747937602360,0.03533812,179.2,179.16,0.04264201]
[1747937603469,5.61403812,179.2,179.16,5.62224201]
[1747937603868,0.03533812,179.2,179.18,5.5791]
[1747937604069,0.03533812,179.2,179.16,0.04264201]
[1747937604565,5.61413812,179.2,179.17,5.5793]
[1747937606071,0.03533812,179.2,179.18,5.5792]
[1747937606575,0.03533812,179.2,179.19,5.5789]
[1747937608374,0.03533812,179.2,179.19,120.0389]
[1747937609276,0.03533812,179.2,179.19,114.46]
[1747937610773,5.61393812,179.2,179.19,111.3504]
[1747937611073,0.03533812,179.2,179.19,111.3504]
[1747937611475,0.03533812,179.2,179.19,116.9293]
[1747937612478,0.03533812,179.2,179.19,111.3504]
[1747937612977,0.03533812,179.2,179.19,116.9293]
[1747937614973,0.03533812,179.2,179.19,111.3504]
[1747937615676,0.03533812,179.2,179.19,116.9293]
[1747937616676,0.03533812,179.2,179.19,111.3504]
[1747937616869,0.03533812,179.2,179.16,114.48264201]
[1747937617280,5.579,179.19,179.16,120.06244201]
[1747937617876,5.5793,179.18,179.16,114.48264201]
[1747937618479,5.5796,179.17,179.16,114.48264201]
[1747937618677,0.03533812,179.2,179.16,114.48264201]
[1747937620280,5.5796,179.17,179.16,114.48264201]
[1747937621881,5.5794,179.18,179.16,114.48264201]
[1747937626291,5.579,179.19,179.16,120.06244201]
[1747937626482,0.03533812,179.2,179.16,114.48264201]
[1747937627288,0.03533812,179.2,179.18,5.5792]
[1747937627676,0.03533812,179.2,179.16,114.48264201]
[1747937627879,0.03533812,179.2,179.19,5.5789]
[1747937629689,0.03533812,179.2,179.16,114.48264201]
[1747937630284,0.03533812,179.2,179.18,5.5792]
[1747937634399,0.03533812,179.2,179.19,5.5789]
[1747937641003,0.03533812,179.2,179.18,121.5592]
[1747937641609,0.03533812,179.2,179.18,115.98]
[1747937642606,0.03533812,179.2,179.19,5.5789]
[1747937655109,0.03533812,179.2,179.18,5.5791]
[1747937655306,0.03533812,179.2,179.19,115.98]
[1747937655708,0.03533812,179.2,179.19,121.5589]
[1747937659916,0.03533812,179.2,179.19,115.98]
[1747937661018,0.03533812,179.2,179.19,121.5589]
[1747937661517,0.03533812,179.2,179.19,115.98]
[1747937662618,0.03533812,179.2,179.19,121.5589]
[1747937662918,0.03533812,179.2,179.19,115.98]
[1747937664720,0.03533812,179.2,179.19,121.5589]
[1747937665219,5.61393812,179.2,179.19,115.98]
[1747937665917,0.03533812,179.2,179.19,115.98]
[1747937666521,0.03533812,179.2,179.19,121.5589]
[1747937669921,0.03533812,179.2,179.19,115.98]
[1747937670821,5.61393812,179.2,179.19,115.98]
[1747937671227,5.5795,179.17,179.16,0.04264201]
[1747937675840,7.18559674,179.19,179.16,0.04264201]
[1747937676041,5.17329674,179.19,179.16,0.04264201]
[1747937676834,5.17329674,179.19,179.17,5.5795]
[1747937677934,5.17329674,179.19,179.16,0.04264201]
[1747937677935,5.17329674,179.19,179.16,5.62234201]
[1747937678437,5.61413812,179.2,179.16,5.62234201]
[1747937678739,5.579,179.19,179.16,5.62234201]
[1747937680332,0.03533812,179.2,179.16,0.04264201]
[1747937680835,5.5795,179.17,179.16,0.04264201]
[1747937700666,5.20863486,179.2,179.16,5.77999949]
[1747937700866,5.20863486,179.2,179.18,5.73735748]
[1747937701166,5.20863486,179.2,179.19,5.5789]
[1747937701666,5.20863486,179.2,179.19,111.6189]
[1747937702471,0.03533812,179.2,179.19,111.6189]
[1747937708482,5.5768,179.26,179.23,5.5775]
[1747937709374,5.61722183,179.26,179.23,5.61305445]
[1747937709678,0.04042183,179.26,179.23,0.03555445]
[1747937711375,0.04042183,179.26,179.24,5.5773]
[1747937711768,0.04042183,179.26,179.23,0.03555445]
[1747937711972,0.04042183,179.26,179.24,5.5774]
[1747937712175,0.04042183,179.26,179.23,0.03555445]
[1747937712375,0.04042183,179.26,179.24,5.5774]
[1747937712679,0.04042183,179.26,179.23,0.03555445]
[1747937713378,0.04042183,179.26,179.25,5.577]
[1747937714386,0.04042183,179.26,179.23,0.03555445]
[1747937715176,0.04042183,179.26,179.24,5.5771]
[1747937715585,0.04042183,179.26,179.23,0.03555445]
[1747937717184,0.04042183,179.26,179.24,5.5774]
[1747937717379,0.04042183,179.26,179.23,0.03555445]
[1747937717777,0.04042183,179.26,179.25,5.5771]
[1747937719588,5.17329674,179.34,179.23,8.99104108]
[1747937719787,5.17329674,179.34,179.23,8.95548663]
[1747937719988,5.17329674,179.34,179.32,5.5746]
[1747937720184,5.17329674,179.34,179.32,113.46]
[1747937720486,0.03828711,179.35,179.32,113.46]
[1747937720682,6.88252357,179.36,179.33,1.9577]
[1747937721189,6.88252357,179.36,179.35,5.5739]
[1747937721386,6.88252357,179.36,179.33,1.9577]
[1747937721597,6.91810762,179.36,179.33,1.9577]
[1747937721784,0.03558405,179.36,179.34,5.574]
[1747937724093,0.03558405,179.36,179.35,5.5739]
[1747937727390,3.9304,179.45,179.33,1.9577]
[1747937727788,5.5717,179.43,179.4,5.5723]
[1747937727992,5.5717,179.43,179.4,118.7123]
[1747937728191,5.61155406,179.43,179.4,118.75395168]
[1747937728992,5.61155406,179.43,179.4,113.18165168]
[1747937729391,5.5718,179.42,179.4,113.18165168]
[1747937731197,0.03985406,179.43,179.4,113.18165168]
[1747937732101,0.03985406,179.43,179.42,5.5718]
[1747937733098,5.5692,179.51,179.46,5.5705]
[1747937733304,4.0599,179.52,179.47,219.04]
[1747937734006,500.04108988,179.5,179.47,0.04074794]
[1747937734199,500.04108988,179.5,179.45,113.12]
[1747937734607,5.5705,179.46,179.45,113.12]
[1747937734801,500.04108988,179.5,179.38,481.64]
[1747937735103,500.0,179.5,179.39,219.04]
[1747937735302,5.5708,179.45,179.43,0.03687855]
[1747937735502,0.03626895,179.46,179.43,0.03687855]
[1747937736599,5.5711,179.44,179.43,0.03687855]
[1747937739308,5.5709,179.45,179.43,0.03687855]
[1747937741810,5.5711,179.44,179.43,0.03687855]
[1747937742015,0.03626895,179.46,179.36,113.08]
[1747937742310,3.8179,179.45,179.36,113.08]
[1747937742610,3.8179,179.45,179.36,118.6534]
[1747937742810,3.8179,179.45,179.36,113.08]
[1747937743011,5.5723,179.41,179.39,0.0363024]
[1747937743610,5.60759578,179.42,179.39,5.6089024]
[1747937744108,5.5721,179.41,179.39,5.6089024]
[1747937744310,0.03579578,179.42,179.39,5.6089024]
[1747937744709,5.60779578,179.42,179.39,5.6089024]
[1747937744907,0.03579578,179.42,179.4,5.5724]
[1747937745309,0.03579578,179.42,179.39,0.0363024]
[1747937745509,0.03579578,179.42,179.4,113.08]
[1747937745914,0.03579578,179.42,179.41,111.4721]
[1747937746105,502.06,179.5,179.41,105.9]
[1747937746810,5.5697,179.49,179.41,105.9]
[1747937747012,5.5697,179.49,179.44,5.5709]
[1747937747312,0.03661003,179.48,179.45,113.11783588]
[1747937747712,5.60671003,179.48,179.45,118.68863588]
[1747937748214,5.5703,179.47,179.45,113.11783588]
[1747937748416,0.03661003,179.48,179.45,113.11783588]
[1747937748814,5.5705,179.46,179.45,113.11783588]
[1747937753217,5.5705,179.46,179.45,0.03783588]
[1747937760021,5.5717,179.43,179.41,113.08]
[1747937760325,5.5717,179.43,179.41,218.96]
[1747937761024,5.5718,179.42,179.41,113.08]
[1747937761230,0.03937945,179.44,179.4,0.04089418]
[1747937761525,5.5721,179.41,179.4,0.04089418]
[1747937763225,5.58,179.41,179.31,113.8]
[1747937763433,115.7692,179.4,179.31,113.8]
[1747937763631,5.5749,179.32,179.31,113.8]
[1747937763932,115.7692,179.4,179.3,105.88]
[1747937764132,0.04150853,179.37,179.33,0.03793026]
[1747937764740,5.574,179.35,179.33,0.03793026]
[1747937765030,0.04150853,179.37,179.33,0.03793026]
[1747937765531,5.5743,179.34,179.33,0.03793026]
[1747937772532,0.04150853,179.37,179.33,0.03793026]
[1747937772932,0.04150853,179.37,179.36,5.5736]
[1747937773135,6.88252357,179.4,179.36,113.84]
[1747937773335,3.77452357,179.49,179.36,113.84]
[1747937773536,5.5713,179.44,179.37,1.9295]
[1747937773738,4.0406,179.48,179.37,1.9295]
[1747937773942,4.0406,179.48,179.36,115.8379]
[1747937774140,5.572,179.42,179.4,0.03893091]
[1747937774447,0.04040355,179.44,179.4,0.03893091]
[1747937774837,0.04040355,179.44,179.4,113.87893091]
[1747937775440,0.04040355,179.44,179.4,219.79893091]
[1747937775633,0.04040355,179.44,179.43,5.5715]
[1747937779340,500.0,179.5,179.48,5.5698]
[1747937780537,500.0,179.5,179.47,5.60908709]
[1747937780733,500.0,179.5,179.47,0.03898709]
[1747937781342,500.0,179.5,179.47,5.60918709]
[1747937781840,500.0,179.5,179.47,0.03898709]
[1747937782845,505.5694,179.5,179.47,5.60918709]
[1747937783141,505.5694,179.5,179.47,0.03898709]
[1747937783342,505.5694,179.5,179.47,5.60918709]
[1747937784142,500.0,179.5,179.47,5.60918709]
[1747937785042,500.0,179.5,179.47,0.03898709]
[1747937785539,500.0,179.5,179.49,5.5696]
[1747937786446,251.87191363,179.5,179.49,5.5696]
[1747937786836,251.87191363,179.5,179.49,111.4296]
[1747937787553,248.76411363,179.5,179.49,111.4296]
[1747937789254,248.76411363,179.5,179.49,105.86]
[1747937791153,248.76411363,179.5,179.49,111.4296]
[1747937791953,248.76411363,179.5,179.49,105.86]
[1747937793255,248.76411363,179.5,179.49,111.4296]
[1747937795050,244.66581363,179.5,179.49,111.4296]
[1747937796059,227.65811363,179.5,179.49,111.4296]
[1747937796757,31.91234363,179.5,179.49,111.4296]
[1747937797761,22.03704363,179.5,179.49,111.4296]
[1747937797955,4.363e-05,179.5,179.49,111.4296]
[1747937799252,0.04230219,179.51,179.5,5.5693]
[1747937799455,0.04230219,179.51,179.5,119.7493]
[1747937801755,114.18,179.65,179.5,114.18]
[1747937802052,114.18,179.65,179.5,116.2065]
[1747937802252,5.5662,179.6,179.5,116.2065]
[1747937802455,114.18,179.65,179.5,116.2065]
[1747937802761,0.03588541,179.58,179.56,5.5671]
[1747937802961,0.03588541,179.58,179.57,219.98]
[1747937804157,0.03588541,179.58,179.57,225.5471]
[1747937804461,0.03588541,179.58,179.57,219.98]
[1747937805261,0.03588541,179.58,179.57,225.5471]
[1747937808265,5.60268541,179.58,179.57,219.96]
[1747937808864,0.03588541,179.58,179.57,219.96]
[1747937809261,0.03588541,179.58,179.57,225.5271]
[1747937813371,8.541e-05,179.58,179.57,225.5271]
[1747937813670,7.5251,179.66,179.57,219.96]
[1747937814675,1.9607,179.66,179.6,0.04137748]
[1747937814870,1.9607,179.66,179.61,114.12]
[1747937815375,5.5652,179.64,179.61,114.12]
[1747937816977,5.5647,179.65,179.61,119.6858]
[1747937817176,1.9607,179.66,179.61,114.12]
[1747937817576,5.5647,179.65,179.62,5.5654]
[1747937818271,7.5251,179.66,179.63,5.5652]
[1747937818474,7.5251,179.66,179.61,114.12]
[1747937818670,1.9607,179.66,179.61,114.12]
[1747937818874,1.9607,179.66,179.63,5.5652]
[1747937819068,1.9607,179.66,179.61,114.12]
[1747937820078,5.5654,179.63,179.61,114.12]
[1747937820269,1.9607,179.66,179.61,114.12]
[1747937821771,1.9607,179.66,179.62,5.5655]
[1747937822378,1.9607,179.66,179.61,114.12]
[1747937822980,1.9607,179.66,179.64,5.5647]
[1747937823579,1.9607,179.66,179.65,5.5646]
[1747937824079,2.051,179.69,179.66,5.5641]
[1747937824380,2.051,179.69,179.65,117.06]
[1747937824678,5.5638,179.68,179.65,117.06]
[1747937824977,5.5638,179.68,179.65,122.6244]
[1747937825380,7.6145,179.69,179.66,5.5643]
[1747937825677,2.051,179.69,179.65,117.06]
[1747937826079,7.6145,179.69,179.65,122.6244]
[1747937826279,7.6145,179.69,179.65,117.06]
[1747937826575,5.5641,179.67,179.65,117.06]
[1747937826878,2.051,179.69,179.65,117.06]
[1747937827180,5.5639,179.68,179.65,122.6246]
[1747937828778,2.051,179.69,179.65,122.6246]
[1747937829279,5.5639,179.68,179.65,122.6246]
[1747937829778,5.5638,179.68,179.65,122.6246]
[1747937829978,2.051,179.69,179.65,117.06]
[1747937830176,2.051,179.69,179.64,0.03528628]
[1747937830375,2.051,179.69,179.63,110.86208628]
[1747937830376,5.5649,179.64,179.63,110.86208628]
[1747937830578,5.5649,179.64,179.63,104.64908628]
[1747937830781,5.5649,179.64,179.63,101.54258628]
[1747937830981,119.091,179.69,179.59,222.8]
[1747937831175,119.091,179.69,179.58,222.8]
[1747937831372,5.5653,179.63,179.62,0.04167718]
[1747937831570,0.03986482,179.65,179.58,117.04]
[1747937832583,0.03986482,179.65,179.6,0.03774406]
[1747937832879,5.5659,179.61,179.6,0.03774406]
[1747937833879,0.03986482,179.65,179.6,0.03774406]
[1747937834983,0.03986482,179.65,179.61,5.5656]
[1747937835388,5.5651,179.64,179.61,5.5656]
[1747937836285,5.5653,179.63,179.6,5.60384406]
[1747937837281,5.5653,179.63,179.61,5.5659]
[1747937837585,0.03986482,179.65,179.61,5.5659]
[1747937837787,0.03986482,179.65,179.62,5.5655]
[1747937838687,0.03986482,179.65,179.61,5.5658]
[1747937838889,0.03986482,179.65,179.6,0.03774406]
[1747937839090,0.03986482,179.65,179.61,5.5658]
[1747937840288,5.5652,179.64,179.61,5.5658]
[1747937841690,5.5652,179.64,179.62,5.5655]
[1747937842390,0.03986482,179.65,179.62,5.5655]
[1747937842783,0.03986482,179.65,179.61,5.5658]
[1747937843185,5.565,179.64,179.61,5.5658]
[1747937844390,5.5653,179.63,179.61,5.5658]
[1747937844989,5.565,179.64,179.61,5.5658]
[1747937845789,5.60466482,179.65,179.62,5.5655]
[1747937845991,0.03986482,179.65,179.62,5.5655]
[1747937846378,0.03986482,179.65,179.63,5.565]
[1747937846589,0.03986482,179.65,179.6,0.03774406]
[1747937847090,0.03986482,179.65,179.64,5.5649]
[1747937847990,0.03986482,179.65,179.63,5.5652]
[1747937849296,0.03986482,179.65,179.62,5.5654]
[1747937850095,5.5651,179.64,179.61,5.5658]
[1747937850287,0.03986482,179.65,179.6,0.03774406]
[1747937850788,0.03986482,179.65,179.6,5.60374406]
[1747937851694,5.5656,179.62,179.6,5.60374406]
[1747937851997,0.03986482,179.65,179.6,5.60374406]
[1747937852494,0.03986482,179.65,179.6,0.03774406]
[1747937853097,5.5654,179.63,179.6,0.03774406]
[1747937853291,0.03986482,179.65,179.6,0.03774406]
[1747937853596,5.5658,179.62,179.6,0.03774406]
[1747937853792,5.5658,179.62,179.6,5.60384406]
[1747937854396,5.5654,179.63,179.6,5.60384406]
[1747937854699,0.03986482,179.65,179.6,5.60384406]
[1747937855692,5.5655,179.63,179.6,5.60384406]
[1747937855997,0.03986482,179.65,179.6,5.60384406]
[1747937857800,5.21602437,179.65,179.61,5.5657]
[1747937857992,5.21602437,179.65,179.6,0.03774406]
[1747937858196,5.5655,179.63,179.6,0.03774406]
[1747937858896,5.21602437,179.65,179.6,0.03774406]
[1747937859502,5.21602437,179.65,179.61,5.5657]
[1747937860001,5.565,179.64,179.61,5.5657]
[1747937860201,5.21602437,179.65,179.61,5.5657]
[1747937860398,5.21602437,179.65,179.6,5.60374406]
[1747937860602,5.21602437,179.65,179.6,0.03774406]
[1747937861605,5.5654,179.63,179.61,5.5659]
[1747937861798,5.21602437,179.65,179.61,5.5659]
[1747937862502,5.21602437,179.65,179.6,5.60374406]
[1747937862904,5.5655,179.63,179.6,5.60374406]
[1747937865007,5.5655,179.63,179.61,5.5659]
[1747937869208,5.5659,179.61,179.6,0.03774406]
[1747937870709,5.5657,179.62,179.6,0.03774406]
[1747937870912,0.03986482,179.65,179.6,0.03774406]
[1747937871209,5.5658,179.62,179.6,0.03774406]
[1747937871412,0.03986482,179.65,179.6,0.03774406]
[1747937872814,0.03986482,179.65,179.6,5.60384406]
[1747937873013,0.03986482,179.65,179.6,0.03774406]
[1747937873607,5.5657,179.62,179.6,0.03774406]
[1747937874321,5.5659,179.61,179.6,0.03774406]
[1747937875319,5.17615955,179.63,179.6,0.03774406]
[1747937876218,5.17615955,179.63,179.61,5.5659]
[1747937876919,5.17615955,179.63,179.62,5.5656]
[1747937877518,5.17615955,179.63,179.61,5.5657]
[1747937877920,5.17615955,179.63,179.6,0.03774406]
[1747937878319,5.17615955,179.63,179.61,5.5657]
[1747937878724,10.74145955,179.63,179.61,5.5657]
[1747937879016,10.74145955,179.63,179.6,5.60384406]